[Event "*** Titled Tuesday Blitz"]
[Site "Chess.com"]
[Date "2020.05.12"]
[Round "5"]
[White "Zubrrr"]
[Black "Stronger1799"]
[Result "1/2-1/2"]
[WhiteElo "2633"]
[BlackElo "2299"]
[TimeControl "180+1"]
[EndTime "10:57:41 PDT"]
[Termination "Game drawn by repetition"]

1. d4 {[%clk 0:03:00.9]} 1... Nf6 {[%clk 0:02:56]} 2. c4 {[%clk 0:03:01]} 2...
g6 {[%clk 0:02:56.2]} 3. g3 {[%clk 0:03:01.4]} 3... Bg7 {[%clk 0:02:55.4]} 4.
Bg2 {[%clk 0:03:01.7]} 4... d5 {[%clk 0:02:56]} 5. cxd5 {[%clk 0:03:01.6]} 5...
Nxd5 {[%clk 0:02:56.9]} 6. Nf3 {[%clk 0:03:02.2]} 6... O-O {[%clk 0:02:56.6]} 7.
Nc3 {[%clk 0:03:02.7]} 7... Nc6 {[%clk 0:02:55.9]} 8. O-O {[%clk 0:02:53.4]}
8... Nb6 {[%clk 0:02:55.9]} 9. e3 {[%clk 0:02:46.1]} 9... Re8 {[%clk 0:02:55.5]}
10. Qe2 {[%clk 0:02:42.1]} 10... e5 {[%clk 0:02:55.5]} 11. Nxe5 {[%clk
0:02:38.7]} 11... Nxe5 {[%clk 0:02:56.4]} 12. dxe5 {[%clk 0:02:39.5]} 12... Bxe5
{[%clk 0:02:56.5]} 13. Rd1 {[%clk 0:02:28.4]} 13... Qe7 {[%clk 0:02:56.5]} 14.
f4 {[%clk 0:02:28.2]} 14... Bg7 {[%clk 0:02:56.3]} 15. e4 {[%clk 0:02:28.5]}
15... Be6 {[%clk 0:02:56]} 16. e5 {[%clk 0:02:25.9]} 16... c6 {[%clk 0:02:43]}
17. Ne4 {[%clk 0:02:23.4]} 17... h5 {[%clk 0:02:33.9]} 18. h3 {[%clk 0:02:15.2]}
18... Bc4 {[%clk 0:02:20.3]} 19. Qf2 {[%clk 0:02:11.1]} 19... Bd5 {[%clk
0:02:13.4]} 20. Be3 {[%clk 0:02:02.2]} 20... Nc4 {[%clk 0:02:09.2]} 21. Bc5
{[%clk 0:01:59.9]} 21... Qe6 {[%clk 0:02:02.6]} 22. Ng5 {[%clk 0:01:57.4]} 22...
Qf5 {[%clk 0:01:53]} 23. Rxd5 {[%clk 0:01:56.4]} 23... cxd5 {[%clk 0:01:44.9]}
24. Bxd5 {[%clk 0:01:57.3]} 24... Nxe5 {[%clk 0:01:45]} 25. fxe5 {[%clk
0:00:58.3]} 25... Rxe5 {[%clk 0:01:44.7]} 26. Bxf7+ {[%clk 0:00:54.1]} 26... Kh8
{[%clk 0:01:44.3]} 27. Qxf5 {[%clk 0:00:38.6]} 27... Rxf5 {[%clk 0:01:42.9]} 28.
Be3 {[%clk 0:00:32]} 28... Bf6 {[%clk 0:00:45.5]} 29. Bxg6 {[%clk 0:00:28.5]}
29... Bxg5 {[%clk 0:00:36.7]} 30. Bxf5 {[%clk 0:00:27.5]} 30... Bxe3+ {[%clk
0:00:36.8]} 31. Kg2 {[%clk 0:00:28.1]} 31... Rf8 {[%clk 0:00:34]} 32. g4 {[%clk
0:00:25.4]} 32... hxg4 {[%clk 0:00:29.9]} 33. hxg4 {[%clk 0:00:26.3]} 33... Rd8
{[%clk 0:00:28]} 34. Kf3 {[%clk 0:00:23.5]} 34... Bg5 {[%clk 0:00:22.8]} 35.
Rh1+ {[%clk 0:00:21.4]} 35... Kg8 {[%clk 0:00:21.6]} 36. Rh7 {[%clk 0:00:22]}
36... Rd2 {[%clk 0:00:07.2]} 37. Rxb7 {[%clk 0:00:21.2]} 37... a5 {[%clk
0:00:07]} 38. a4 {[%clk 0:00:19]} 38... Bf6 {[%clk 0:00:06.3]} 39. Be6+ {[%clk
0:00:15.6]} 39... Kh8 {[%clk 0:00:05.2]} 40. b3 {[%clk 0:00:15.6]} 40... Rd4
{[%clk 0:00:04.7]} 41. Bc4 {[%clk 0:00:11.3]} 41... Bd8 {[%clk 0:00:04]} 42. Rb5
{[%clk 0:00:08.1]} 42... Kg7 {[%clk 0:00:03.3]} 43. Rf5 {[%clk 0:00:05.4]} 43...
Kg6 {[%clk 0:00:03.2]} 44. Bf7+ {[%clk 0:00:05.5]} 44... Kg7 {[%clk 0:00:03.2]}
45. Bd5 {[%clk 0:00:05.5]} 45... Kg6 {[%clk 0:00:03.2]} 46. Be4 {[%clk
0:00:04.7]} 46... Kg7 {[%clk 0:00:03.7]} 47. Rb5 {[%clk 0:00:03.6]} 47... Bc7
{[%clk 0:00:04]} 48. Rb7 {[%clk 0:00:03.5]} 48... Rd7 {[%clk 0:00:04.5]} 49. Bf5
{[%clk 0:00:03.8]} 49... Re7 {[%clk 0:00:04.4]} 50. g5 {[%clk 0:00:03.1]} 50...
Bd8 {[%clk 0:00:04.5]} 51. Rb8 {[%clk 0:00:02.3]} 51... Bc7 {[%clk 0:00:03.6]}
52. Rb7 {[%clk 0:00:02.8]} 52... Bd8 {[%clk 0:00:04]} 53. Rb5 {[%clk 0:00:03.4]}
53... Bc7 {[%clk 0:00:03.9]} 54. Kg4 {[%clk 0:00:03.6]} 54... Re5 {[%clk
0:00:03.9]} 55. Rb7 {[%clk 0:00:03.3]} 55... Re7 {[%clk 0:00:04.3]} 56. Ra7
{[%clk 0:00:02.5]} 56... Bd8 {[%clk 0:00:03.6]} 57. Ra6 {[%clk 0:00:03]} 57...
Bc7 {[%clk 0:00:03.1]} 58. Rg6+ {[%clk 0:00:02.8]} 58... Kf7 {[%clk 0:00:03]}
59. Rf6+ {[%clk 0:00:03.2]} 59... Kg7 {[%clk 0:00:03.4]} 60. Rh6 {[%clk
0:00:03]} 60... Be5 {[%clk 0:00:02.7]} 61. Rh7+ {[%clk 0:00:03]} 61... Kf8
{[%clk 0:00:03.1]} 62. Rh3 {[%clk 0:00:02.3]} 62... Kg7 {[%clk 0:00:03.3]} 63.
Kh5 {[%clk 0:00:02.6]} 63... Bd6 {[%clk 0:00:02.9]} 64. Rf3 {[%clk 0:00:02.7]}
64... Re5 {[%clk 0:00:03.1]} 65. Bg6 {[%clk 0:00:02.8]} 65... Be7 {[%clk
0:00:03.1]} 66. Rf7+ {[%clk 0:00:02.9]} 66... Kg8 {[%clk 0:00:03.5]} 67. Rf5
{[%clk 0:00:03.2]} 67... Rxf5 {[%clk 0:00:03.5]} 68. Bxf5 {[%clk 0:00:04.1]}
68... Kg7 {[%clk 0:00:04.1]} 69. Kg4 {[%clk 0:00:04.6]} 69... Bb4 {[%clk
0:00:04.5]} 70. Kf4 {[%clk 0:00:04.9]} 70... Bc3 {[%clk 0:00:04.9]} 71. Ke4
{[%clk 0:00:04.9]} 71... Bb4 {[%clk 0:00:05.8]} 72. Kd5 {[%clk 0:00:04.9]} 72...
Bc3 {[%clk 0:00:05.9]} 73. Kc4 {[%clk 0:00:05.3]} 73... Bb4 {[%clk 0:00:06.5]}
74. Be4 {[%clk 0:00:05.7]} 74... Bd2 {[%clk 0:00:06.4]} 75. g6 {[%clk
0:00:05.9]} 75... Bb4 {[%clk 0:00:06.7]} 76. Bd3 {[%clk 0:00:06.4]} 76... Bd2
{[%clk 0:00:07]} 77. Kb5 {[%clk 0:00:06.8]} 77... Bb4 {[%clk 0:00:07.5]} 78. Kc4
{[%clk 0:00:07.1]} 78... Bd2 {[%clk 0:00:08]} 79. Kd4 {[%clk 0:00:08]} 79... Bb4
{[%clk 0:00:08.6]} 80. Ke3 {[%clk 0:00:08]} 80... Be1 {[%clk 0:00:08.9]} 81. Be4
{[%clk 0:00:08.3]} 81... Bb4 {[%clk 0:00:09.7]} 82. Ke2 {[%clk 0:00:08.8]} 82...
Bc5 {[%clk 0:00:10.1]} 83. Kd3 {[%clk 0:00:09.2]} 83... Bb4 {[%clk 0:00:11]} 84.
Kc4 {[%clk 0:00:09.7]} 84... Bd2 {[%clk 0:00:11.1]} 85. Kd3 {[%clk 0:00:09.9]}
85... Bb4 {[%clk 0:00:11.5]} 86. Kd4 {[%clk 0:00:10.8]} 86... Be1 {[%clk
0:00:11.7]} 87. Kc4 {[%clk 0:00:11.3]} 87... Bb4 {[%clk 0:00:12.2]} 88. Kb5
{[%clk 0:00:11.6]} 88... Bd2 {[%clk 0:00:12.2]} 89. Kc4 {[%clk 0:00:11.5]} 89...
Bb4 {[%clk 0:00:12.2]} 1/2-1/2

[Event "*** Titled Tuesday Blitz"]
[Site "Chess.com"]
[Date "2020.05.12"]
[Round "5"]
[White "Rozum_Ivan"]
[Black "David_Paravyan"]
[Result "0-1"]
[WhiteElo "2608"]
[BlackElo "2901"]
[TimeControl "180+1"]
[EndTime "10:57:45 PDT"]
[Termination "David_Paravyan won on time"]

1. d4 {[%clk 0:03:00.9]} 1... Nf6 {[%clk 0:02:57]} 2. Nf3 {[%clk 0:03:00.9]}
2... d5 {[%clk 0:02:56.3]} 3. c4 {[%clk 0:03:00.4]} 3... e6 {[%clk 0:02:56.8]}
4. g3 {[%clk 0:03:00.2]} 4... Bb4+ {[%clk 0:02:54.6]} 5. Bd2 {[%clk 0:02:59.9]}
5... a5 {[%clk 0:02:54.2]} 6. Bg2 {[%clk 0:02:59.2]} 6... O-O {[%clk 0:02:54.1]}
7. O-O {[%clk 0:02:59]} 7... dxc4 {[%clk 0:02:52.9]} 8. Qc2 {[%clk 0:02:55.9]}
8... Bxd2 {[%clk 0:02:52.8]} 9. Nbxd2 {[%clk 0:02:52]} 9... b5 {[%clk
0:02:52.7]} 10. a4 {[%clk 0:02:51.6]} 10... c6 {[%clk 0:02:47]} 11. b3 {[%clk
0:02:50.2]} 11... cxb3 {[%clk 0:02:39.1]} 12. Nxb3 {[%clk 0:02:51.1]} 12... b4
{[%clk 0:02:34]} 13. Ne5 {[%clk 0:02:44.5]} 13... Nd5 {[%clk 0:02:29.9]} 14. e4
{[%clk 0:02:07.2]} 14... Nc3 {[%clk 0:02:29.9]} 15. Rfe1 {[%clk 0:02:05.1]}
15... Bb7 {[%clk 0:02:15.5]} 16. Nc4 {[%clk 0:02:02.8]} 16... Nd7 {[%clk
0:02:11.7]} 17. e5 {[%clk 0:01:59.3]} 17... Qc7 {[%clk 0:02:10.6]} 18. Nd6
{[%clk 0:01:56.7]} 18... Ra7 {[%clk 0:01:56.6]} 19. Nc5 {[%clk 0:01:37.9]} 19...
Ba8 {[%clk 0:01:48.4]} 20. h4 {[%clk 0:01:34.2]} 20... Qb6 {[%clk 0:01:27.2]}
21. Nde4 {[%clk 0:01:26.2]} 21... Nxe4 {[%clk 0:01:10.4]} 22. Bxe4 {[%clk
0:01:27.1]} 22... h6 {[%clk 0:01:07.3]} 23. Rac1 {[%clk 0:01:19.1]} 23... Rd8
{[%clk 0:01:03.2]} 24. Qb2 {[%clk 0:01:17.3]} 24... Rc7 {[%clk 0:00:27]} 25. Bb1
{[%clk 0:01:15.3]} 25... Qb8 {[%clk 0:00:17.6]} 26. Qc2 {[%clk 0:01:09.4]} 26...
Nf8 {[%clk 0:00:11.7]} 27. Na6 {[%clk 0:00:56.1]} 27... Qb6 {[%clk 0:00:10.6]}
28. Nxc7 {[%clk 0:00:56.3]} 28... Qxc7 {[%clk 0:00:11.5]} 29. Qc5 {[%clk
0:00:52.2]} 29... Rd5 {[%clk 0:00:10.9]} 30. Qc4 {[%clk 0:00:49.4]} 30... Qd8
{[%clk 0:00:07]} 31. Red1 {[%clk 0:00:46.1]} 31... c5 {[%clk 0:00:04.4]} 32. Be4
{[%clk 0:00:46]} 32... Rxd4 {[%clk 0:00:03.2]} 33. Rxd4 {[%clk 0:00:45.3]} 33...
cxd4 {[%clk 0:00:04.1]} 34. Bxa8 {[%clk 0:00:44.2]} 34... Qxa8 {[%clk 0:00:05]}
35. Qxd4 {[%clk 0:00:44.5]} 35... h5 {[%clk 0:00:04.2]} 36. Rc5 {[%clk
0:00:33.1]} 36... Ng6 {[%clk 0:00:03.3]} 37. Qc4 {[%clk 0:00:27.8]} 37... Kh7
{[%clk 0:00:03.2]} 38. Qe2 {[%clk 0:00:27.8]} 38... Qd8 {[%clk 0:00:02.2]} 39.
Qxh5+ {[%clk 0:00:27]} 39... Kg8 {[%clk 0:00:02.8]} 40. Qf3 {[%clk 0:00:24.6]}
40... Ne7 {[%clk 0:00:02.9]} 41. Rb5 {[%clk 0:00:20.4]} 41... Nd5 {[%clk
0:00:03]} 42. Qd3 {[%clk 0:00:19.6]} 42... Qc7 {[%clk 0:00:02.6]} 43. Qd2 {[%clk
0:00:18.7]} 43... Nc3 {[%clk 0:00:02.4]} 44. Qd6 {[%clk 0:00:10.9]} 44... Nxb5
{[%clk 0:00:02.9]} 45. axb5 {[%clk 0:00:11.3]} 45... Qc1+ {[%clk 0:00:01.3]} 46.
Kg2 {[%clk 0:00:11.6]} 46... b3 {[%clk 0:00:02.2]} 47. b6 {[%clk 0:00:09.1]}
47... b2 {[%clk 0:00:02.3]} 48. b7 {[%clk 0:00:09.6]} 48... b1=Q {[%clk
0:00:03.2]} 49. b8=Q+ {[%clk 0:00:10.2]} 49... Qxb8 {[%clk 0:00:03.8]} 50. Qxb8+
{[%clk 0:00:11]} 50... Kh7 {[%clk 0:00:04.7]} 51. Qb7 {[%clk 0:00:10.6]} 51...
Qc4 {[%clk 0:00:03.5]} 52. Qxf7 {[%clk 0:00:09.8]} 52... Qd5+ {[%clk 0:00:04.1]}
53. Kg1 {[%clk 0:00:10]} 53... Qxe5 {[%clk 0:00:04.6]} 54. Qa7 {[%clk 0:00:10]}
54... Qd5 {[%clk 0:00:04.5]} 55. Qa6 {[%clk 0:00:09.6]} 55... Qd1+ {[%clk
0:00:03.9]} 56. Kg2 {[%clk 0:00:09.3]} 56... Qd5+ {[%clk 0:00:03.6]} 57. Kg1
{[%clk 0:00:09.2]} 57... Qd1+ {[%clk 0:00:04.1]} 58. Kg2 {[%clk 0:00:09.3]}
58... a4 {[%clk 0:00:04.7]} 59. Qxe6 {[%clk 0:00:08.6]} 59... Qc2 {[%clk
0:00:05.2]} 60. Qg4 {[%clk 0:00:05.2]} 60... Qc6+ {[%clk 0:00:02.7]} 61. Kh2
{[%clk 0:00:05]} 61... a3 {[%clk 0:00:01.6]} 62. Qh5+ {[%clk 0:00:05.1]} 62...
Kg8 {[%clk 0:00:02.2]} 63. Qa5 {[%clk 0:00:05.1]} 63... Qc1 {[%clk 0:00:01.8]}
64. Qd5+ {[%clk 0:00:04.2]} 64... Kh7 {[%clk 0:00:01.9]} 65. Qh5+ {[%clk
0:00:03.9]} 65... Kg8 {[%clk 0:00:02.5]} 66. Qe8+ {[%clk 0:00:03.8]} 66... Kh7
{[%clk 0:00:03.2]} 67. Qh5+ {[%clk 0:00:04]} 67... Qh6 {[%clk 0:00:03.8]} 68.
Qf5+ {[%clk 0:00:04]} 68... Qg6 {[%clk 0:00:04.4]} 69. Qa5 {[%clk 0:00:03.6]}
69... Qd6 {[%clk 0:00:03.3]} 70. Qh5+ {[%clk 0:00:02.5]} 70... Kg8 {[%clk
0:00:03.9]} 71. Qe8+ {[%clk 0:00:02.6]} 71... Kh7 {[%clk 0:00:04.5]} 72. Qh5+
{[%clk 0:00:02.6]} 72... Kg8 {[%clk 0:00:05]} 73. Qe8+ {[%clk 0:00:03.1]} 73...
Qf8 {[%clk 0:00:05.7]} 74. Qe6+ {[%clk 0:00:03.4]} 74... Kh8 {[%clk 0:00:05.5]}
75. Qa6 {[%clk 0:00:03.6]} 75... Qxf2+ {[%clk 0:00:05.5]} 76. Kh3 {[%clk
0:00:04.2]} 76... Qf5+ {[%clk 0:00:05.9]} 77. Kh2 {[%clk 0:00:03.9]} 77... Qc2+
{[%clk 0:00:06.5]} 78. Kh3 {[%clk 0:00:04.1]} 78... a2 {[%clk 0:00:06.7]} 79.
Qa8+ {[%clk 0:00:04.2]} 79... Kh7 {[%clk 0:00:06.8]} 80. h5 {[%clk 0:00:04.7]}
80... Qb1 {[%clk 0:00:05.9]} 81. h6 {[%clk 0:00:01.1]} 81... a1=Q {[%clk
0:00:06]} 0-1

[Event "*** Titled Tuesday Blitz"]
[Site "Chess.com"]
[Date "2020.05.12"]
[Round "5"]
[White "Munkhzul_Turmunkh"]
[Black "Aygehovit1992"]
[Result "1/2-1/2"]
[WhiteElo "2479"]
[BlackElo "2680"]
[TimeControl "180+1"]
[EndTime "10:57:46 PDT"]
[Termination "Game drawn - insufficient material"]

1. e4 {[%clk 0:03:00.9]} 1... d6 {[%clk 0:02:59]} 2. d4 {[%clk 0:02:59.7]} 2...
g6 {[%clk 0:02:59]} 3. Nc3 {[%clk 0:02:59.9]} 3... Bg7 {[%clk 0:02:58.3]} 4. Nf3
{[%clk 0:03:00.2]} 4... Nf6 {[%clk 0:02:54.9]} 5. Be2 {[%clk 0:03:00.5]} 5...
O-O {[%clk 0:02:54.6]} 6. O-O {[%clk 0:03:01]} 6... Nc6 {[%clk 0:02:54.9]} 7. h3
{[%clk 0:02:58.4]} 7... e5 {[%clk 0:02:54.3]} 8. dxe5 {[%clk 0:02:57.2]} 8...
dxe5 {[%clk 0:02:52.4]} 9. Be3 {[%clk 0:02:56.3]} 9... Be6 {[%clk 0:02:44.5]}
10. Bc5 {[%clk 0:02:55.3]} 10... Re8 {[%clk 0:02:35.2]} 11. Ng5 {[%clk
0:02:54.8]} 11... Nd4 {[%clk 0:02:32.4]} 12. Nxe6 {[%clk 0:02:52.2]} 12... Rxe6
{[%clk 0:02:27.1]} 13. Bf3 {[%clk 0:02:27.4]} 13... Nd7 {[%clk 0:02:05.9]} 14.
Bxd4 {[%clk 0:02:09.7]} 14... exd4 {[%clk 0:02:05.3]} 15. Nd5 {[%clk 0:02:10.6]}
15... c6 {[%clk 0:01:53.8]} 16. Nf4 {[%clk 0:02:10]} 16... Rd6 {[%clk
0:01:54.2]} 17. Nd3 {[%clk 0:02:08.8]} 17... Qb6 {[%clk 0:01:45.4]} 18. Re1
{[%clk 0:02:05.2]} 18... Re8 {[%clk 0:01:45.2]} 19. b3 {[%clk 0:02:03.6]} 19...
a5 {[%clk 0:01:42.3]} 20. Qd2 {[%clk 0:02:02.6]} 20... h5 {[%clk 0:01:27.5]} 21.
Rad1 {[%clk 0:02:01.6]} 21... Ne5 {[%clk 0:01:19.1]} 22. Nxe5 {[%clk 0:02:01]}
22... Bxe5 {[%clk 0:01:17.6]} 23. Qd3 {[%clk 0:02:01.3]} 23... Rf6 {[%clk
0:01:13.2]} 24. a4 {[%clk 0:01:58.4]} 24... h4 {[%clk 0:01:12.8]} 25. Bg4 {[%clk
0:01:57.1]} 25... Qc5 {[%clk 0:01:04.6]} 26. Rf1 {[%clk 0:01:56]} 26... Qe7
{[%clk 0:00:56.6]} 27. Qc4 {[%clk 0:01:49.5]} 27... Rf4 {[%clk 0:00:51]} 28. Qd3
{[%clk 0:01:41.8]} 28... Qg5 {[%clk 0:00:50]} 29. Rde1 {[%clk 0:01:27.1]} 29...
Rf6 {[%clk 0:00:45.8]} 30. g3 {[%clk 0:01:16]} 30... hxg3 {[%clk 0:00:44.4]} 31.
fxg3 {[%clk 0:01:16.9]} 31... Kg7 {[%clk 0:00:38.1]} 32. Kg2 {[%clk 0:01:16.4]}
32... Re7 {[%clk 0:00:30.9]} 33. Rxf6 {[%clk 0:01:15.9]} 33... Qxf6 {[%clk
0:00:29]} 34. Rf1 {[%clk 0:01:12]} 34... Qd6 {[%clk 0:00:28.9]} 35. h4 {[%clk
0:01:09.2]} 35... Qc5 {[%clk 0:00:27.3]} 36. h5 {[%clk 0:01:03]} 36... Bd6
{[%clk 0:00:17.5]} 37. Rh1 {[%clk 0:00:56.4]} 37... Qg5 {[%clk 0:00:15]} 38. Qf3
{[%clk 0:00:26.6]} 38... Be5 {[%clk 0:00:14.6]} 39. Rd1 {[%clk 0:00:17.8]} 39...
b5 {[%clk 0:00:14.2]} 40. axb5 {[%clk 0:00:15.7]} 40... cxb5 {[%clk 0:00:15.1]}
41. hxg6 {[%clk 0:00:15.5]} 41... fxg6 {[%clk 0:00:16]} 42. Bh3 {[%clk 0:00:15]}
42... Rf7 {[%clk 0:00:15.7]} 43. Qg4 {[%clk 0:00:15.4]} 43... Qxg4 {[%clk
0:00:15.3]} 44. Bxg4 {[%clk 0:00:16.3]} 44... Rc7 {[%clk 0:00:16]} 45. Rd2
{[%clk 0:00:15.6]} 45... a4 {[%clk 0:00:16.4]} 46. bxa4 {[%clk 0:00:15.3]} 46...
bxa4 {[%clk 0:00:17.3]} 47. Be6 {[%clk 0:00:15.9]} 47... a3 {[%clk 0:00:17.4]}
48. Kh3 {[%clk 0:00:13.9]} 48... Ra7 {[%clk 0:00:16.1]} 49. Ba2 {[%clk
0:00:13.4]} 49... Kf6 {[%clk 0:00:16.6]} 50. Rd3 {[%clk 0:00:13.7]} 50... Ra4
{[%clk 0:00:14.6]} 51. Kg4 {[%clk 0:00:13.6]} 51... Bd6 {[%clk 0:00:14.9]} 52.
Rb3 {[%clk 0:00:13.4]} 52... Bb4 {[%clk 0:00:12.7]} 53. Rf3+ {[%clk 0:00:12.2]}
53... Ke5 {[%clk 0:00:12.3]} 54. Rf7 {[%clk 0:00:11.9]} 54... Kxe4 {[%clk
0:00:11.2]} 55. Bb3 {[%clk 0:00:11.7]} 55... Ra5 {[%clk 0:00:10.4]} 56. Ba2
{[%clk 0:00:11.8]} 56... Bd6 {[%clk 0:00:09.8]} 57. Rf6 {[%clk 0:00:11.3]} 57...
Be5 {[%clk 0:00:07]} 58. Rxg6 {[%clk 0:00:11.4]} 58... Rb5 {[%clk 0:00:06.6]}
59. Ra6 {[%clk 0:00:11]} 59... Rb2 {[%clk 0:00:03.9]} 60. Rxa3 {[%clk
0:00:11.1]} 60... Rb8 {[%clk 0:00:03.7]} 61. Be6 {[%clk 0:00:11.1]} 61... Rb6
{[%clk 0:00:03.5]} 62. Bf5+ {[%clk 0:00:11.2]} 62... Kd5 {[%clk 0:00:04]} 63.
Ra5+ {[%clk 0:00:11.5]} 63... Kd6 {[%clk 0:00:04.5]} 64. Be4 {[%clk 0:00:11.4]}
64... Rb1 {[%clk 0:00:04.5]} 65. Ra6+ {[%clk 0:00:10.9]} 65... Ke7 {[%clk
0:00:03.8]} 66. Kf3 {[%clk 0:00:10.2]} 66... Re1 {[%clk 0:00:03.3]} 67. g4
{[%clk 0:00:09.9]} 67... Re3+ {[%clk 0:00:03.6]} 68. Kg2 {[%clk 0:00:09.5]}
68... Rxe4 {[%clk 0:00:04.5]} 69. Kf3 {[%clk 0:00:08]} 69... Rf4+ {[%clk
0:00:04.5]} 70. Ke2 {[%clk 0:00:07.8]} 70... Rxg4 {[%clk 0:00:04.7]} 71. Kd3
{[%clk 0:00:08.4]} 71... Rg3+ {[%clk 0:00:04.6]} 72. Ke4 {[%clk 0:00:08.2]}
72... Bf6 {[%clk 0:00:04.8]} 73. Kd5 {[%clk 0:00:07.9]} 73... Rc3 {[%clk
0:00:04.5]} 74. Ra7+ {[%clk 0:00:08.1]} 74... Kf8 {[%clk 0:00:04.7]} 75. Ke6
{[%clk 0:00:08.4]} 75... Rf3 {[%clk 0:00:03.3]} 76. Rf7+ {[%clk 0:00:07]} 76...
Ke8 {[%clk 0:00:03.2]} 77. Rxf6 {[%clk 0:00:07.9]} 77... Rc3 {[%clk 0:00:02.8]}
78. Rh6 {[%clk 0:00:07]} 78... Kd8 {[%clk 0:00:02.5]} 79. Kd5 {[%clk 0:00:06.5]}
79... Rxc2 {[%clk 0:00:02.3]} 80. Kxd4 {[%clk 0:00:06.8]} 80... Rc7 {[%clk
0:00:02.9]} 81. Rh8+ {[%clk 0:00:06.3]} 81... Kd7 {[%clk 0:00:02.6]} 82. Rh7+
{[%clk 0:00:07.2]} 82... Kc6 {[%clk 0:00:03.5]} 83. Rxc7+ {[%clk 0:00:07.5]}
83... Kxc7 {[%clk 0:00:04.4]} 1/2-1/2